[Event "*** Titled Tuesday Blitz"]
[Site "Chess.com"]
[Date "2020.12.01"]
[Round "4"]
[White "Oglob71"]
[Black "norwaytoadog"]
[Result "1-0"]
[WhiteElo "2444"]
[BlackElo "2271"]
[TimeControl "180+1"]
[EndTime "10:34:41 PST"]
[Termination "Oglob71 won by resignation"]

1. d4 {[%clk 0:03:00.8]} 1... d5 {[%clk 0:02:57.4]} 2. Nf3 {[%clk 0:02:57.7]}
2... Nf6 {[%clk 0:02:57.2]} 3. c4 {[%clk 0:02:58]} 3... c6 {[%clk 0:02:57.4]} 4.
e3 {[%clk 0:02:57.5]} 4... e6 {[%clk 0:02:55]} 5. Bd3 {[%clk 0:02:56.2]} 5...
Nbd7 {[%clk 0:02:53.9]} 6. O-O {[%clk 0:02:56]} 6... Bd6 {[%clk 0:02:49.9]} 7.
Nbd2 {[%clk 0:02:55.8]} 7... O-O {[%clk 0:02:47.8]} 8. e4 {[%clk 0:02:56.1]}
8... dxe4 {[%clk 0:02:47.5]} 9. Nxe4 {[%clk 0:02:56.5]} 9... Nxe4 {[%clk
0:02:47.2]} 10. Bxe4 {[%clk 0:02:56.9]} 10... Nf6 {[%clk 0:02:46.1]} 11. Bc2
{[%clk 0:02:57.3]} 11... b6 {[%clk 0:02:44.6]} 12. Bg5 {[%clk 0:02:57]} 12... h6
{[%clk 0:02:40.9]} 13. Bh4 {[%clk 0:02:56.9]} 13... Be7 {[%clk 0:02:26.7]} 14.
Qd3 {[%clk 0:02:54.8]} 14... g6 {[%clk 0:02:26.6]} 15. Ne5 {[%clk 0:02:49.5]}
15... g5 {[%clk 0:01:30.7]} 16. Nxc6 {[%clk 0:02:47.7]} 16... Qc7 {[%clk
0:01:30.8]} 17. Nxe7+ {[%clk 0:02:47.9]} 17... Qxe7 {[%clk 0:01:30.9]} 18. Bg3
{[%clk 0:02:48]} 18... Bb7 {[%clk 0:01:29.7]} 19. Be5 {[%clk 0:02:48.5]} 19...
Rfd8 {[%clk 0:01:21.7]} 20. Qh3 {[%clk 0:02:47.8]} 20... Kg7 {[%clk 0:01:08.4]}
21. f4 {[%clk 0:02:46.2]} 1-0

[Event "*** Titled Tuesday Blitz"]
[Site "Chess.com"]
[Date "2020.12.01"]
[Round "4"]
[White "kidagent"]
[Black "MoreChessJulia"]
[Result "0-1"]
[WhiteElo "2295"]
[BlackElo "2107"]
[TimeControl "180+1"]
[EndTime "10:34:46 PST"]
[Termination "MoreChessJulia won by resignation"]

1. e4 {[%clk 0:03:00.9]} 1... g6 {[%clk 0:02:56.6]} 2. d4 {[%clk 0:03:00.4]}
2... Bg7 {[%clk 0:02:56.2]} 3. Nf3 {[%clk 0:02:59.9]} 3... c5 {[%clk 0:02:55.9]}
4. d5 {[%clk 0:02:59.7]} 4... d6 {[%clk 0:02:55.1]} 5. c4 {[%clk 0:02:59]} 5...
Bg4 {[%clk 0:02:54.8]} 6. Nc3 {[%clk 0:02:58.1]} 6... Nd7 {[%clk 0:02:54.2]} 7.
Be2 {[%clk 0:02:56.9]} 7... Bxf3 {[%clk 0:02:53.3]} 8. Bxf3 {[%clk 0:02:56.7]}
8... Ne5 {[%clk 0:02:52.9]} 9. Be2 {[%clk 0:02:57]} 9... a6 {[%clk 0:02:52.5]}
10. O-O {[%clk 0:02:56.9]} 10... Nf6 {[%clk 0:02:52]} 11. f4 {[%clk 0:02:57.1]}
11... Ned7 {[%clk 0:02:51.4]} 12. Be3 {[%clk 0:02:51.1]} 12... O-O {[%clk
0:02:49]} 13. Qd2 {[%clk 0:02:51.5]} 13... Rb8 {[%clk 0:02:48.3]} 14. Rae1
{[%clk 0:02:51.8]} 14... b5 {[%clk 0:02:47.6]} 15. b3 {[%clk 0:02:52.1]} 15...
b4 {[%clk 0:02:45.9]} 16. Nd1 {[%clk 0:02:47]} 16... Nxe4 {[%clk 0:02:45]} 17.
Qc2 {[%clk 0:02:47.6]} 17... f5 {[%clk 0:02:44.1]} 18. Bd3 {[%clk 0:02:47.2]}
18... Ndf6 {[%clk 0:02:43.5]} 19. Nf2 {[%clk 0:02:47.8]} 19... Nxf2 {[%clk
0:02:37.4]} 20. Rxf2 {[%clk 0:02:48.7]} 20... Ng4 {[%clk 0:02:36.4]} 21. Rfe2
{[%clk 0:02:48.4]} 21... Nxe3 {[%clk 0:02:35.7]} 22. Rxe3 {[%clk 0:02:49.3]}
22... Bd4 {[%clk 0:02:35.2]} 23. Kf1 {[%clk 0:02:50.2]} 23... Bxe3 {[%clk
0:02:34.4]} 24. Rxe3 {[%clk 0:02:51.1]} 24... Qd7 {[%clk 0:02:30.6]} 25. Re6
{[%clk 0:02:50.7]} 25... Rf6 {[%clk 0:02:29.5]} 26. Qe2 {[%clk 0:02:43.9]} 26...
Rxe6 {[%clk 0:02:28.8]} 27. dxe6 {[%clk 0:02:43.9]} 27... Qc6 {[%clk 0:02:28.5]}
28. Qe3 {[%clk 0:02:40.4]} 28... a5 {[%clk 0:02:27.6]} 29. Be2 {[%clk
0:02:40.3]} 29... a4 {[%clk 0:02:26.7]} 30. Bf3 {[%clk 0:02:40.9]} 30... Qa6
{[%clk 0:02:23.8]} 31. g4 {[%clk 0:02:34.4]} 31... axb3 {[%clk 0:02:23]} 32.
axb3 {[%clk 0:02:34]} 32... Qa1+ {[%clk 0:02:21.9]} 33. Kg2 {[%clk 0:02:34.4]}
33... fxg4 {[%clk 0:02:20.5]} 34. Bxg4 {[%clk 0:02:34.3]} 34... Ra8 {[%clk
0:02:20.3]} 35. Bf3 {[%clk 0:02:16.4]} 35... Ra2+ {[%clk 0:02:18.7]} 36. Kg3
{[%clk 0:02:16.3]} 36... Qd4 {[%clk 0:02:12.8]} 37. Qe1 {[%clk 0:02:07.1]} 37...
Rb2 {[%clk 0:02:06.9]} 0-1

[Event "*** Titled Tuesday Blitz"]
[Site "Chess.com"]
[Date "2020.12.01"]
[Round "4"]
[White "Karacsonyi_Gellert"]
[Black "Lysiak_Poltorak"]
[Result "1-0"]
[WhiteElo "2665"]
[BlackElo "2366"]
[TimeControl "180+1"]
[EndTime "10:34:49 PST"]
[Termination "Karacsonyi_Gellert won by resignation"]

1. e4 {[%clk 0:03:00.8]} 1... c5 {[%clk 0:02:59.6]} 2. Nf3 {[%clk 0:03:00.6]}
2... Nc6 {[%clk 0:02:59.7]} 3. d4 {[%clk 0:03:00.6]} 3... cxd4 {[%clk
0:03:00.2]} 4. Nxd4 {[%clk 0:03:01.5]} 4... Nf6 {[%clk 0:03:00.6]} 5. Nc3 {[%clk
0:03:01.7]} 5... e5 {[%clk 0:03:01]} 6. Nf5 {[%clk 0:03:02.1]} 6... d5 {[%clk
0:02:54.2]} 7. exd5 {[%clk 0:03:03]} 7... Bxf5 {[%clk 0:02:53.3]} 8. dxc6 {[%clk
0:03:02.9]} 8... bxc6 {[%clk 0:02:54.2]} 9. Qf3 {[%clk 0:03:02.6]} 9... Qc8
{[%clk 0:02:54.5]} 10. Ba6 {[%clk 0:03:02]} 10... Qxa6 {[%clk 0:02:46.1]} 11.
Qxf5 {[%clk 0:03:01.5]} 11... Bd6 {[%clk 0:02:44.5]} 12. Bg5 {[%clk 0:02:59]}
12... Nd5 {[%clk 0:02:34.8]} 13. Rd1 {[%clk 0:02:43.3]} 13... O-O {[%clk
0:02:19.1]} 14. Nxd5 {[%clk 0:02:29.2]} 14... cxd5 {[%clk 0:02:18.7]} 15. Rxd5
{[%clk 0:02:24.5]} 15... Rad8 {[%clk 0:02:18.8]} 16. Bxd8 {[%clk 0:02:18.1]}
16... Rxd8 {[%clk 0:02:17.9]} 17. Qd3 {[%clk 0:02:04.6]} 17... Bb4+ {[%clk
0:02:12.8]} 18. Ke2 {[%clk 0:02:03.8]} 18... Qxd3+ {[%clk 0:02:05.2]} 19. Rxd3
{[%clk 0:02:04.7]} 19... Rc8 {[%clk 0:02:01.6]} 20. c3 {[%clk 0:02:02.7]} 20...
Bc5 {[%clk 0:02:00.9]} 21. Rhd1 {[%clk 0:02:02.9]} 21... Bb6 {[%clk 0:01:58.1]}
22. Rd7 {[%clk 0:01:57.6]} 22... g6 {[%clk 0:01:48.3]} 23. Re7 {[%clk
0:01:55.7]} 23... Bc5 {[%clk 0:01:38.3]} 24. Rxe5 {[%clk 0:01:54.7]} 1-0

[Event "*** Titled Tuesday Blitz"]
[Site "Chess.com"]
[Date "2020.12.01"]
[Round "4"]
[White "Blitzstream"]
[Black "Tpros"]
[Result "1-0"]
[WhiteElo "2761"]
[BlackElo "2503"]
[TimeControl "180+1"]
[EndTime "10:34:58 PST"]
[Termination "Blitzstream won by resignation"]

1. e4 {[%clk 0:03:00.9]} 1... c5 {[%clk 0:03:00]} 2. Nf3 {[%clk 0:03:01.4]} 2...
a6 {[%clk 0:03:00.3]} 3. b4 {[%clk 0:03:01]} 3... cxb4 {[%clk 0:02:59.7]} 4. d4
{[%clk 0:03:01.3]} 4... d6 {[%clk 0:02:59.1]} 5. Bd3 {[%clk 0:03:01.3]} 5... Nf6
{[%clk 0:02:58.7]} 6. O-O {[%clk 0:03:01]} 6... g6 {[%clk 0:02:59.3]} 7. Bg5
{[%clk 0:02:56.8]} 7... Bg7 {[%clk 0:02:59.3]} 8. Qd2 {[%clk 0:02:56.6]} 8...
O-O {[%clk 0:02:57.7]} 9. Qxb4 {[%clk 0:02:56.3]} 9... Nc6 {[%clk 0:02:57.3]}
10. Qd2 {[%clk 0:02:55.9]} 10... e5 {[%clk 0:02:57]} 11. d5 {[%clk 0:02:54]}
11... Ne7 {[%clk 0:02:56.2]} 12. c4 {[%clk 0:02:51.2]} 12... Nd7 {[%clk
0:02:50.4]} 13. Nc3 {[%clk 0:02:45.9]} 13... f6 {[%clk 0:02:45.9]} 14. Be3
{[%clk 0:02:44.1]} 14... b6 {[%clk 0:02:45.5]} 15. a4 {[%clk 0:02:42.3]} 15...
a5 {[%clk 0:02:44.6]} 16. Nb5 {[%clk 0:02:41.7]} 16... Nc5 {[%clk 0:02:44.5]}
17. Rfb1 {[%clk 0:02:23.9]} 17... Ba6 {[%clk 0:02:42.5]} 18. Rb2 {[%clk
0:02:22.5]} 18... Qd7 {[%clk 0:02:37.9]} 19. Bxc5 {[%clk 0:02:12.9]} 19... dxc5
{[%clk 0:02:37.4]} 20. Rab1 {[%clk 0:02:11.9]} 20... Nc8 {[%clk 0:02:35.5]} 21.
Be2 {[%clk 0:02:01.2]} 21... h5 {[%clk 0:02:30.3]} 22. d6 {[%clk 0:01:55.1]}
22... Bxb5 {[%clk 0:02:19.8]} 23. Qd5+ {[%clk 0:01:54.7]} 23... Kh7 {[%clk
0:02:18.6]} 24. Qxa8 {[%clk 0:01:54.4]} 24... Ne7 {[%clk 0:02:04.6]} 25. Qxf8
{[%clk 0:01:48]} 25... Bxf8 {[%clk 0:02:03.9]} 26. dxe7 {[%clk 0:01:48.9]} 26...
Bxe7 {[%clk 0:02:00.7]} 27. Rxb5 {[%clk 0:01:47.9]} 27... Bd8 {[%clk 0:02:00.7]}
28. Rd1 {[%clk 0:01:45.6]} 28... Qe7 {[%clk 0:01:59.8]} 29. Rb3 {[%clk
0:01:44.2]} 29... Kh6 {[%clk 0:01:55.4]} 30. Rbd3 {[%clk 0:01:43.2]} 1-0

[Event "*** Titled Tuesday Blitz"]
[Site "Chess.com"]
[Date "2020.12.01"]
[Round "4"]
[White "hawes33"]
[Black "niki_2003"]
[Result "0-1"]
[WhiteElo "2235"]
[BlackElo "2015"]
[TimeControl "180+1"]
[EndTime "10:34:59 PST"]
[Termination "niki_2003 won by resignation"]

1. e4 {[%clk 0:03:00.9]} 1... c5 {[%clk 0:02:58.1]} 2. Nc3 {[%clk 0:02:59.3]}
2... a6 {[%clk 0:02:57.5]} 3. g3 {[%clk 0:02:54]} 3... b5 {[%clk 0:02:56.7]} 4.
Bg2 {[%clk 0:02:51.7]} 4... e6 {[%clk 0:02:56.9]} 5. d3 {[%clk 0:02:51.3]} 5...
Bb7 {[%clk 0:02:56.4]} 6. Nge2 {[%clk 0:02:49.8]} 6... d5 {[%clk 0:02:56.8]} 7.
exd5 {[%clk 0:02:50.7]} 7... exd5 {[%clk 0:02:56.8]} 8. d4 {[%clk 0:02:51.2]}
8... c4 {[%clk 0:02:55.9]} 9. a3 {[%clk 0:02:49.4]} 9... Nf6 {[%clk 0:02:56.3]}
10. O-O {[%clk 0:02:48.6]} 10... Be7 {[%clk 0:02:56]} 11. Re1 {[%clk 0:02:48.5]}
11... O-O {[%clk 0:02:56.1]} 12. Nf4 {[%clk 0:02:49.2]} 12... Qd7 {[%clk
0:02:47.7]} 13. Qe2 {[%clk 0:02:36.4]} 13... Re8 {[%clk 0:02:46.5]} 14. Be3
{[%clk 0:02:28.5]} 14... a5 {[%clk 0:02:44.4]} 15. h4 {[%clk 0:02:22.2]} 15...
b4 {[%clk 0:02:42.4]} 16. Nd1 {[%clk 0:02:14.1]} 16... Bd6 {[%clk 0:02:37.7]}
17. axb4 {[%clk 0:02:10.6]} 17... Bxf4 {[%clk 0:02:28.5]} 18. gxf4 {[%clk
0:02:07.1]} 18... axb4 {[%clk 0:02:28.5]} 19. Rxa8 {[%clk 0:02:02.3]} 19... Bxa8
{[%clk 0:02:28]} 20. Qf3 {[%clk 0:02:01.5]} 20... Nc6 {[%clk 0:02:25.9]} 21. Qg3
{[%clk 0:01:50]} 21... Nxd4 {[%clk 0:02:21.9]} 22. c3 {[%clk 0:01:19.4]} 22...
Nf5 {[%clk 0:02:18.5]} 23. Qg5 {[%clk 0:01:14.4]} 23... h6 {[%clk 0:02:10.6]}
0-1

[Event "*** Titled Tuesday Blitz"]
[Site "Chess.com"]
[Date "2020.12.01"]
[Round "4"]
[White "GAusal"]
[Black "ChelsieMonica"]
[Result "0-1"]
[WhiteElo "2094"]
[BlackElo "2378"]
[TimeControl "180+1"]
[EndTime "10:35:13 PST"]
[Termination "ChelsieMonica won by checkmate"]

1. e4 {[%clk 0:03:00.9]} 1... e6 {[%clk 0:02:59.7]} 2. d4 {[%clk 0:02:59.4]}
2... d5 {[%clk 0:03:00.6]} 3. e5 {[%clk 0:02:58.4]} 3... c5 {[%clk 0:03:00.7]}
4. c3 {[%clk 0:02:56.3]} 4... Nc6 {[%clk 0:03:01.1]} 5. Nf3 {[%clk 0:02:53.2]}
5... Qb6 {[%clk 0:02:59.3]} 6. Bd3 {[%clk 0:02:50.3]} 6... cxd4 {[%clk
0:02:59.1]} 7. cxd4 {[%clk 0:02:47.7]} 7... Bd7 {[%clk 0:03:00]} 8. Be2 {[%clk
0:02:43]} 8... Bb4+ {[%clk 0:02:59.3]} 9. Nc3 {[%clk 0:02:42.5]} 9... Nge7
{[%clk 0:02:58.6]} 10. O-O {[%clk 0:02:38.6]} 10... O-O {[%clk 0:02:58.2]} 11.
Na4 {[%clk 0:02:35.3]} 11... Qc7 {[%clk 0:02:56.6]} 12. a3 {[%clk 0:02:31.7]}
12... Ba5 {[%clk 0:02:56.9]} 13. Be3 {[%clk 0:02:27.7]} 13... Nf5 {[%clk
0:02:56.1]} 14. Rc1 {[%clk 0:02:23.1]} 14... Qd8 {[%clk 0:02:55.6]} 15. Bg5
{[%clk 0:02:18.6]} 15... f6 {[%clk 0:02:54.7]} 16. exf6 {[%clk 0:02:15.4]} 16...
gxf6 {[%clk 0:02:55.6]} 17. Bf4 {[%clk 0:02:11.1]} 17... Bb6 {[%clk 0:02:55.4]}
18. Bd3 {[%clk 0:02:06.6]} 18... Nfxd4 {[%clk 0:02:51.4]} 19. Nxb6 {[%clk
0:02:01.1]} 19... Qxb6 {[%clk 0:02:52.3]} 20. Nxd4 {[%clk 0:01:53.9]} 20... Qxd4
{[%clk 0:02:42.8]} 21. Bxh7+ {[%clk 0:01:47.7]} 21... Kxh7 {[%clk 0:02:41.4]}
22. Qh5+ {[%clk 0:01:43.2]} 22... Kg8 {[%clk 0:02:26.8]} 23. Qg6+ {[%clk
0:01:42.7]} 23... Kh8 {[%clk 0:02:26.8]} 24. Rc3 {[%clk 0:01:42.1]} 24... e5
{[%clk 0:02:27.1]} 25. Rh3+ {[%clk 0:01:39]} 25... Bxh3 {[%clk 0:02:26.6]} 26.
Bh6 {[%clk 0:01:34.1]} 26... Rg8 {[%clk 0:02:19.1]} 27. Qxf6+ {[%clk 0:01:33.3]}
27... Kh7 {[%clk 0:02:19.1]} 28. Be3 {[%clk 0:01:26]} 28... Rxg2+ {[%clk
0:02:16.5]} 29. Kh1 {[%clk 0:01:24.9]} 29... Qg4 {[%clk 0:02:11.1]} 30. f3
{[%clk 0:01:15.3]} 30... Rxh2+ {[%clk 0:02:10.8]} 31. Kxh2 {[%clk 0:01:12.7]}
31... Qg2# {[%clk 0:02:11.7]} 0-1

[Event "*** Titled Tuesday Blitz"]
[Site "Chess.com"]
[Date "2020.12.01"]
[Round "4"]
[White "Slovak_fighter2000"]
[Black "bascheyaro"]
[Result "0-1"]
[WhiteElo "2539"]
[BlackElo "2744"]
[TimeControl "180+1"]
[EndTime "10:35:14 PST"]
[Termination "bascheyaro won by resignation"]

1. d4 {[%clk 0:03:00.4]} 1... d5 {[%clk 0:02:59.1]} 2. Bf4 {[%clk 0:03:00.9]}
2... Bf5 {[%clk 0:02:58]} 3. e3 {[%clk 0:03:01.1]} 3... e6 {[%clk 0:02:57]} 4.
Nf3 {[%clk 0:03:01.2]} 4... Nf6 {[%clk 0:02:57.4]} 5. c4 {[%clk 0:03:01.2]} 5...
Bxb1 {[%clk 0:02:57.5]} 6. Rxb1 {[%clk 0:02:57.8]} 6... Bb4+ {[%clk 0:02:57.5]}
7. Ke2 {[%clk 0:02:58]} 7... Bd6 {[%clk 0:02:56.7]} 8. g3 {[%clk 0:02:57.3]}
8... O-O {[%clk 0:02:54]} 9. Bg2 {[%clk 0:02:55.9]} 9... c6 {[%clk 0:02:54.2]}
10. Qb3 {[%clk 0:02:54.9]} 10... Bxf4 {[%clk 0:02:53.5]} 11. gxf4 {[%clk
0:02:54.2]} 11... Qb6 {[%clk 0:02:53.6]} 12. c5 {[%clk 0:02:53.3]} 12... Qa6+
{[%clk 0:02:53.7]} 13. Ke1 {[%clk 0:02:46.9]} 13... Ne4 {[%clk 0:02:53.6]} 14.
Bf1 {[%clk 0:02:46.3]} 14... Qa5+ {[%clk 0:02:49.9]} 15. Ke2 {[%clk 0:02:46.4]}
15... b6 {[%clk 0:02:48.3]} 16. cxb6 {[%clk 0:02:39.7]} 16... axb6 {[%clk
0:02:49.2]} 17. a3 {[%clk 0:02:34.7]} 17... c5 {[%clk 0:02:49]} 18. Rd1 {[%clk
0:02:21.2]} 18... Nc6 {[%clk 0:02:46.9]} 19. Bh3 {[%clk 0:02:12.9]} 19... Qa6+
{[%clk 0:02:35.1]} 20. Ke1 {[%clk 0:02:08.1]} 20... Rac8 {[%clk 0:02:17.2]} 21.
Qd3 {[%clk 0:02:00.5]} 21... Qa5+ {[%clk 0:02:11.6]} 22. Kf1 {[%clk 0:01:58.5]}
22... cxd4 {[%clk 0:02:11.8]} 23. Nxd4 {[%clk 0:01:55.8]} 23... Nxd4 {[%clk
0:02:12]} 24. Qxd4 {[%clk 0:01:56.5]} 24... Rc2 {[%clk 0:02:11.2]} 25. f3 {[%clk
0:01:52.7]} 25... Nd2+ {[%clk 0:01:46.7]} 26. Rxd2 {[%clk 0:01:39.1]} 26... Qxd2
{[%clk 0:01:46.8]} 27. Qxd2 {[%clk 0:01:35.4]} 27... Rxd2 {[%clk 0:01:47.7]} 0-1

[Event "*** Titled Tuesday Blitz"]
[Site "Chess.com"]
[Date "2020.12.01"]
[Round "4"]
[White "GM_dmitrij"]
[Black "Gudmundur_Kjartansson"]
[Result "1-0"]
[WhiteElo "2948"]
[BlackElo "2554"]
[TimeControl "180+1"]
[EndTime "10:35:22 PST"]
[Termination "GM_dmitrij won by resignation"]

1. Nf3 {[%clk 0:03:00.9]} 1... Nf6 {[%clk 0:02:58.4]} 2. e3 {[%clk 0:03:00.9]}
2... b6 {[%clk 0:02:57.6]} 3. c4 {[%clk 0:03:00.4]} 3... Bb7 {[%clk 0:02:57.9]}
4. Nc3 {[%clk 0:03:00.9]} 4... e6 {[%clk 0:02:57.8]} 5. b3 {[%clk 0:03:00.2]}
5... d5 {[%clk 0:02:57.8]} 6. Bb2 {[%clk 0:03:00.2]} 6... a6 {[%clk 0:02:57.9]}
7. cxd5 {[%clk 0:03:00.4]} 7... exd5 {[%clk 0:02:57.5]} 8. Qc2 {[%clk
0:02:58.7]} 8... Bd6 {[%clk 0:02:56.6]} 9. Be2 {[%clk 0:02:55.1]} 9... Qe7
{[%clk 0:02:56.4]} 10. O-O {[%clk 0:02:54.3]} 10... O-O {[%clk 0:02:55.2]} 11.
Nd4 {[%clk 0:02:47.6]} 11... g6 {[%clk 0:02:49.5]} 12. Bf3 {[%clk 0:02:47.7]}
12... c5 {[%clk 0:02:48]} 13. Nde2 {[%clk 0:02:48]} 13... Nbd7 {[%clk
0:02:44.9]} 14. d4 {[%clk 0:02:47.9]} 14... Ne4 {[%clk 0:02:32.5]} 15. Rad1
{[%clk 0:02:44.6]} 15... Ndf6 {[%clk 0:02:31]} 16. dxc5 {[%clk 0:02:42.4]} 16...
Bxc5 {[%clk 0:02:21.5]} 17. Nf4 {[%clk 0:02:40.8]} 17... Nxf2 {[%clk 0:01:41.5]}
18. Rxf2 {[%clk 0:02:32.8]} 18... Bxe3 {[%clk 0:01:41.1]} 19. Nfxd5 {[%clk
0:02:27.2]} 19... Nxd5 {[%clk 0:01:38.4]} 20. Nxd5 {[%clk 0:02:24.6]} 20... Bxd5
{[%clk 0:01:35.7]} 21. Bxd5 {[%clk 0:02:22.8]} 21... Rad8 {[%clk 0:01:22.5]} 22.
Qc3 {[%clk 0:02:08.7]} 22... Bxf2+ {[%clk 0:01:19.9]} 23. Kf1 {[%clk 0:02:08.6]}
23... Bd4 {[%clk 0:00:56.7]} 24. Qxd4 {[%clk 0:02:08.1]} 1-0

[Event "*** Titled Tuesday Blitz"]
[Site "Chess.com"]
[Date "2020.12.01"]
[Round "4"]
[White "glebus008"]
[Black "misterlamine"]
[Result "1-0"]
[WhiteElo "2238"]
[BlackElo "2298"]
[TimeControl "180+1"]
[EndTime "10:35:28 PST"]
[Termination "glebus008 won by resignation"]

1. e4 {[%clk 0:03:00.5]} 1... c5 {[%clk 0:02:59.4]} 2. Nf3 {[%clk 0:02:59.7]}
2... d6 {[%clk 0:02:59.1]} 3. d4 {[%clk 0:02:59]} 3... cxd4 {[%clk 0:03:00]} 4.
Qxd4 {[%clk 0:02:58.8]} 4... Nc6 {[%clk 0:02:58.4]} 5. Bb5 {[%clk 0:02:58.1]}
5... e5 {[%clk 0:02:57]} 6. Qd3 {[%clk 0:02:56.1]} 6... Nf6 {[%clk 0:02:53.9]}
7. Bg5 {[%clk 0:02:55.3]} 7... a6 {[%clk 0:02:48.3]} 8. Bxc6+ {[%clk 0:02:52]}
8... bxc6 {[%clk 0:02:47.7]} 9. Nc3 {[%clk 0:02:52.2]} 9... Rb8 {[%clk
0:02:45.6]} 10. b3 {[%clk 0:02:47.8]} 10... h6 {[%clk 0:02:44.9]} 11. Bxf6
{[%clk 0:02:47.3]} 11... Qxf6 {[%clk 0:02:45.8]} 12. O-O {[%clk 0:02:47.3]}
12... Be7 {[%clk 0:02:44.3]} 13. Na4 {[%clk 0:02:44.9]} 13... O-O {[%clk
0:02:38.7]} 14. c4 {[%clk 0:02:44.8]} 14... Rd8 {[%clk 0:02:39]} 15. Nc3 {[%clk
0:02:44.2]} 15... Bg4 {[%clk 0:02:37.2]} 16. Ne1 {[%clk 0:02:40.7]} 16... Be6
{[%clk 0:02:34.7]} 17. Nc2 {[%clk 0:02:39.8]} 17... Qg6 {[%clk 0:02:34.3]} 18.
Ne3 {[%clk 0:02:36.1]} 18... Bg5 {[%clk 0:02:27.7]} 19. Rad1 {[%clk 0:02:31.2]}
19... Bf4 {[%clk 0:02:25.4]} 20. g3 {[%clk 0:02:27.9]} 20... Bxe3 {[%clk
0:02:21.5]} 21. Qxe3 {[%clk 0:02:27.2]} 21... f5 {[%clk 0:02:09.6]} 22. exf5
{[%clk 0:02:22.9]} 22... Bxf5 {[%clk 0:02:10.5]} 23. Rd2 {[%clk 0:02:22]} 23...
Rf8 {[%clk 0:02:02.5]} 24. Qa7 {[%clk 0:02:15]} 24... Bh3 {[%clk 0:01:53.6]} 25.
Re1 {[%clk 0:02:13.8]} 25... Qf6 {[%clk 0:01:49.8]} 26. Re3 {[%clk 0:02:07.4]}
26... Ra8 {[%clk 0:01:29.2]} 27. Qc7 {[%clk 0:02:06.4]} 27... Rac8 {[%clk
0:01:23.2]} 28. Qxd6 {[%clk 0:02:02.9]} 28... Qg6 {[%clk 0:01:06.2]} 29. Qxg6
{[%clk 0:02:01.6]} 1-0

[Event "*** Titled Tuesday Blitz"]
[Site "Chess.com"]
[Date "2020.12.01"]
[Round "4"]
[White "marabu44"]
[Black "Kolle05"]
[Result "0-1"]
[WhiteElo "2268"]
[BlackElo "2442"]
[TimeControl "180+1"]
[EndTime "10:35:30 PST"]
[Termination "Kolle05 won by resignation"]

1. Nf3 {[%clk 0:03:00.4]} 1... Nf6 {[%clk 0:02:59.4]} 2. c4 {[%clk 0:03:00.1]}
2... g6 {[%clk 0:02:59.5]} 3. Nc3 {[%clk 0:03:00.3]} 3... Bg7 {[%clk 0:02:59.9]}
4. e4 {[%clk 0:03:00.5]} 4... d6 {[%clk 0:03:00.5]} 5. d4 {[%clk 0:03:00.7]}
5... O-O {[%clk 0:03:01]} 6. Be2 {[%clk 0:03:00.7]} 6... e5 {[%clk 0:03:01.5]}
7. dxe5 {[%clk 0:03:00.9]} 7... dxe5 {[%clk 0:02:59.8]} 8. Qxd8 {[%clk
0:03:01.4]} 8... Rxd8 {[%clk 0:03:00.7]} 9. Nd5 {[%clk 0:03:01.2]} 9... Nxd5
{[%clk 0:02:43.4]} 10. cxd5 {[%clk 0:03:00.6]} 10... c6 {[%clk 0:02:43.7]} 11.
Bc4 {[%clk 0:02:56.7]} 11... cxd5 {[%clk 0:02:43.7]} 12. Bxd5 {[%clk 0:02:56.5]}
12... Nc6 {[%clk 0:02:41]} 13. Bg5 {[%clk 0:02:55.7]} 13... Re8 {[%clk
0:02:36.5]} 14. Bxc6 {[%clk 0:02:49.5]} 14... bxc6 {[%clk 0:02:37.2]} 15. Rc1
{[%clk 0:02:49]} 15... f5 {[%clk 0:02:11]} 16. Bd2 {[%clk 0:02:22.2]} 16... fxe4
{[%clk 0:01:51.3]} 17. Ng5 {[%clk 0:02:21.4]} 17... Bf5 {[%clk 0:01:51.7]} 18.
Rxc6 {[%clk 0:02:19.8]} 18... Rac8 {[%clk 0:01:49.2]} 19. Rc3 {[%clk 0:02:15.3]}
19... Red8 {[%clk 0:01:29.8]} 20. h4 {[%clk 0:02:06]} 20... h6 {[%clk 0:01:22]}
21. Nh3 {[%clk 0:02:05]} 21... Bg4 {[%clk 0:01:21.2]} 22. O-O {[%clk 0:01:54.9]}
22... Rxd2 {[%clk 0:01:18.7]} 23. Rxc8+ {[%clk 0:01:54.2]} 23... Bxc8 {[%clk
0:01:19.6]} 24. Rc1 {[%clk 0:01:51.8]} 24... Bxh3 {[%clk 0:01:18.7]} 25. gxh3
{[%clk 0:01:52.7]} 25... Rxb2 {[%clk 0:01:19]} 26. Rc4 {[%clk 0:01:50.3]} 26...
Rxa2 {[%clk 0:01:18.7]} 27. Rxe4 {[%clk 0:01:50.4]} 27... a5 {[%clk 0:01:19.3]}
0-1

[Event "*** Titled Tuesday Blitz"]
[Site "Chess.com"]
[Date "2020.12.01"]
[Round "4"]
[White "StockholmMissile"]
[Black "talman67"]
[Result "1-0"]
[WhiteElo "2373"]
[BlackElo "2524"]
[TimeControl "180+1"]
[EndTime "10:35:46 PST"]
[Termination "StockholmMissile won by resignation"]

1. d4 {[%clk 0:02:59]} 1... Nf6 {[%clk 0:02:59.2]} 2. c4 {[%clk 0:02:58.2]} 2...
e6 {[%clk 0:02:59.3]} 3. Nf3 {[%clk 0:02:58]} 3... b6 {[%clk 0:02:57.9]} 4. a3
{[%clk 0:02:57.6]} 4... Bb7 {[%clk 0:02:57.2]} 5. Nc3 {[%clk 0:02:57.1]} 5... d5
{[%clk 0:02:57.5]} 6. Bg5 {[%clk 0:02:53.1]} 6... Be7 {[%clk 0:02:53.7]} 7. Qa4+
{[%clk 0:02:52.2]} 7... Nbd7 {[%clk 0:02:43.5]} 8. Bxf6 {[%clk 0:02:49.9]} 8...
Bxf6 {[%clk 0:02:41.6]} 9. cxd5 {[%clk 0:02:49.1]} 9... exd5 {[%clk 0:02:41.1]}
10. g3 {[%clk 0:02:48.8]} 10... O-O {[%clk 0:02:40.6]} 11. Bh3 {[%clk
0:02:48.4]} 11... c6 {[%clk 0:02:34.3]} 12. Nxd5 {[%clk 0:02:48]} 12... cxd5
{[%clk 0:02:26.5]} 13. Qxd7 {[%clk 0:02:45.2]} 13... Qxd7 {[%clk 0:02:19.3]} 14.
Bxd7 {[%clk 0:02:44.6]} 14... Rad8 {[%clk 0:02:20.2]} 15. Bb5 {[%clk 0:02:32.8]}
15... Rc8 {[%clk 0:02:15.7]} 16. Kd2 {[%clk 0:02:30.1]} 16... a6 {[%clk
0:02:09.5]} 17. Bd3 {[%clk 0:02:26.7]} 17... g6 {[%clk 0:02:09.5]} 18. Rac1
{[%clk 0:02:25.1]} 18... Rfd8 {[%clk 0:01:57.9]} 19. Rxc8 {[%clk 0:02:23.3]}
19... Rxc8 {[%clk 0:01:57.2]} 20. Rc1 {[%clk 0:02:23.8]} 20... Kf8 {[%clk
0:01:57.8]} 21. Rxc8+ {[%clk 0:02:22]} 21... Bxc8 {[%clk 0:01:58.7]} 22. Ne5
{[%clk 0:02:12.8]} 22... Ke7 {[%clk 0:01:58.7]} 23. Nc6+ {[%clk 0:02:09]} 23...
Kd6 {[%clk 0:01:57.7]} 24. Ne5 {[%clk 0:01:22.7]} 24... Bxe5 {[%clk 0:01:57]}
25. dxe5+ {[%clk 0:01:23.6]} 25... Kxe5 {[%clk 0:01:57.9]} 26. f4+ {[%clk
0:01:19.4]} 26... Kd4 {[%clk 0:01:47]} 27. b4 {[%clk 0:01:14.1]} 1-0